[Event "*** SCC Grand Prix: Titled Tuesday Blitz"]
[Site "Chess.com"]
[Date "2020.06.09"]
[Round "10"]
[White "ferdipy"]
[Black "1f3_2g41-0"]
[Result "0-1"]
[WhiteElo "2333"]
[BlackElo "2224"]
[TimeControl "180+1"]
[EndTime "10:54:11 PDT"]
[Termination "1f3_2g41-0 won by checkmate"]

1. e4 {[%clk 0:03:00.9]} 1... c5 {[%clk 0:02:58.7]} 2. d4 {[%clk 0:02:59.2]}
2... cxd4 {[%clk 0:02:52]} 3. c3 {[%clk 0:03:00.1]} 3... d3 {[%clk 0:02:51.3]}
4. c4 {[%clk 0:03:00.3]} 4... Nc6 {[%clk 0:02:49.5]} 5. Bxd3 {[%clk 0:03:00.9]}
5... d6 {[%clk 0:02:48.4]} 6. Nf3 {[%clk 0:02:52.7]} 6... Nf6 {[%clk 0:02:47.3]}
7. Nc3 {[%clk 0:02:53.3]} 7... g6 {[%clk 0:02:46.6]} 8. h3 {[%clk 0:02:53.2]}
8... Bg7 {[%clk 0:02:46.8]} 9. O-O {[%clk 0:02:54.1]} 9... O-O {[%clk
0:02:46.8]} 10. Be3 {[%clk 0:02:55]} 10... Nd7 {[%clk 0:02:46.9]} 11. Qe2 {[%clk
0:02:55.9]} 11... Nc5 {[%clk 0:02:43.1]} 12. Rac1 {[%clk 0:02:50.8]} 12... h6
{[%clk 0:02:38]} 13. Rfd1 {[%clk 0:02:38.4]} 13... Nxd3 {[%clk 0:02:34.6]} 14.
Qxd3 {[%clk 0:02:37.3]} 14... Be6 {[%clk 0:02:33.9]} 15. b3 {[%clk 0:02:36.9]}
15... Rc8 {[%clk 0:02:32.9]} 16. Qd2 {[%clk 0:02:37.4]} 16... Kh7 {[%clk
0:02:31.2]} 17. Qe2 {[%clk 0:02:36.8]} 17... Qa5 {[%clk 0:02:27.8]} 18. Bd2
{[%clk 0:02:28]} 18... Qa6 {[%clk 0:02:20.6]} 19. Ne1 {[%clk 0:02:23.2]} 19...
Nd4 {[%clk 0:02:18.3]} 20. Qd3 {[%clk 0:02:22.6]} 20... f5 {[%clk 0:01:48.2]}
21. f4 {[%clk 0:02:14.9]} 21... fxe4 {[%clk 0:01:44.7]} 22. Qxe4 {[%clk
0:02:07.5]} 22... Qb6 {[%clk 0:01:38]} 23. Kh2 {[%clk 0:02:06.1]} 23... Bf5
{[%clk 0:01:35.9]} 24. Qxe7 {[%clk 0:02:01.9]} 24... Rce8 {[%clk 0:01:34.8]} 25.
Qh4 {[%clk 0:01:58.1]} 25... Ne2 {[%clk 0:01:24.1]} 26. Nd5 {[%clk 0:01:45.7]}
26... Qg1# {[%clk 0:01:22.8]} 0-1

[Event "*** SCC Grand Prix: Titled Tuesday Blitz"]
[Site "Chess.com"]
[Date "2020.06.09"]
[Round "10"]
[White "mfwagnerpeixoto"]
[Black "RitvarsReimanis"]
[Result "1-0"]
[WhiteElo "2279"]
[BlackElo "2439"]
[TimeControl "180+1"]
[EndTime "10:54:19 PDT"]
[Termination "mfwagnerpeixoto won by resignation"]

1. Nf3 {[%clk 0:03:00.9]} 1... Nf6 {[%clk 0:02:59]} 2. d4 {[%clk 0:02:59.7]}
2... e6 {[%clk 0:02:59.9]} 3. c4 {[%clk 0:02:59.3]} 3... d5 {[%clk 0:03:00.8]}
4. g3 {[%clk 0:02:59.1]} 4... Be7 {[%clk 0:03:00.9]} 5. Bg2 {[%clk 0:02:59.4]}
5... O-O {[%clk 0:03:01.1]} 6. O-O {[%clk 0:02:59.9]} 6... dxc4 {[%clk
0:03:01.5]} 7. Qc2 {[%clk 0:03:00.1]} 7... b5 {[%clk 0:03:01.4]} 8. a4 {[%clk
0:02:57.8]} 8... b4 {[%clk 0:03:01.6]} 9. Qxc4 {[%clk 0:02:57.5]} 9... a5 {[%clk
0:03:01.2]} 10. Bg5 {[%clk 0:02:55.7]} 10... Ba6 {[%clk 0:02:58.7]} 11. Qc2
{[%clk 0:02:55.3]} 11... Nbd7 {[%clk 0:02:50.6]} 12. Re1 {[%clk 0:02:29.7]}
12... Rc8 {[%clk 0:02:46.1]} 13. Qc6 {[%clk 0:02:14.1]} 13... Nb8 {[%clk
0:02:43.5]} 14. Qc2 {[%clk 0:02:11.8]} 14... c5 {[%clk 0:02:39.9]} 15. Bxf6
{[%clk 0:02:12]} 15... Bxf6 {[%clk 0:02:33.7]} 16. dxc5 {[%clk 0:02:08.5]} 16...
b3 {[%clk 0:02:31.9]} 17. Qxb3 {[%clk 0:02:03.4]} 17... Rxc5 {[%clk 0:02:29.1]}
18. Nc3 {[%clk 0:02:01.9]} 18... Nc6 {[%clk 0:02:27.6]} 19. Ne4 {[%clk
0:01:51.3]} 19... Rd5 {[%clk 0:02:14.6]} 20. Nxf6+ {[%clk 0:01:50.5]} 20... Qxf6
{[%clk 0:02:15.5]} 21. Qb6 {[%clk 0:01:48.5]} 21... Nb4 {[%clk 0:02:13.3]} 22.
e4 {[%clk 0:01:42]} 22... Rd2 {[%clk 0:01:58]} 23. Nxd2 {[%clk 0:01:38.9]} 1-0

[Event "*** SCC Grand Prix: Titled Tuesday Blitz"]
[Site "Chess.com"]
[Date "2020.06.09"]
[Round "10"]
[White "Belka1989"]
[Black "MusicCityMaster"]
[Result "0-1"]
[WhiteElo "2438"]
[BlackElo "2356"]
[TimeControl "180+1"]
[EndTime "10:54:36 PDT"]
[Termination "MusicCityMaster won by resignation"]

1. e4 {[%clk 0:03:00.9]} 1... c5 {[%clk 0:02:59.3]} 2. Nf3 {[%clk 0:03:01]} 2...
d6 {[%clk 0:02:59.4]} 3. d4 {[%clk 0:03:01.5]} 3... cxd4 {[%clk 0:02:59.6]} 4.
Nxd4 {[%clk 0:03:02.4]} 4... Nf6 {[%clk 0:02:59.7]} 5. f3 {[%clk 0:03:02.9]}
5... a6 {[%clk 0:03:00.2]} 6. c4 {[%clk 0:03:03.4]} 6... g6 {[%clk 0:02:53.2]}
7. Nc3 {[%clk 0:03:03.4]} 7... Bg7 {[%clk 0:02:53.5]} 8. Be3 {[%clk 0:03:04]}
8... O-O {[%clk 0:02:53.1]} 9. Be2 {[%clk 0:03:04.5]} 9... Nc6 {[%clk
0:02:51.5]} 10. O-O {[%clk 0:03:05.1]} 10... Nxd4 {[%clk 0:02:51.7]} 11. Bxd4
{[%clk 0:03:06]} 11... Qc7 {[%clk 0:02:49.6]} 12. Qd2 {[%clk 0:03:05.3]} 12...
Be6 {[%clk 0:02:48.1]} 13. b3 {[%clk 0:02:53.4]} 13... Rfc8 {[%clk 0:02:40.9]}
14. Rab1 {[%clk 0:02:51.7]} 14... Nd7 {[%clk 0:02:40]} 15. Be3 {[%clk
0:02:51.9]} 15... b5 {[%clk 0:02:39.2]} 16. Nd5 {[%clk 0:02:44.9]} 16... Bxd5
{[%clk 0:02:36.7]} 17. cxd5 {[%clk 0:02:45.8]} 17... Qc2 {[%clk 0:02:31]} 18.
Rfc1 {[%clk 0:02:36.5]} 18... Qxd2 {[%clk 0:02:30.2]} 19. Bxd2 {[%clk
0:02:37.4]} 19... Bd4+ {[%clk 0:02:30.2]} 20. Kf1 {[%clk 0:02:37.9]} 20... Nb6
{[%clk 0:02:10.3]} 21. Ba5 {[%clk 0:02:01.1]} 21... Be3 {[%clk 0:01:59.6]} 22.
Rxc8+ {[%clk 0:01:51.2]} 22... Rxc8 {[%clk 0:01:57.4]} 23. Bxb6 {[%clk
0:01:51.5]} 23... Bxb6 {[%clk 0:01:56.4]} 24. Bd3 {[%clk 0:01:51.4]} 24... Rc3
{[%clk 0:01:51.9]} 25. Ke2 {[%clk 0:01:51.3]} 25... e6 {[%clk 0:01:45.2]} 26.
dxe6 {[%clk 0:01:44.5]} 26... fxe6 {[%clk 0:01:44.9]} 27. Kd2 {[%clk 0:01:22.4]}
27... Rc7 {[%clk 0:01:38.3]} 28. Rc1 {[%clk 0:01:17.7]} 28... Be3+ {[%clk
0:01:37.7]} 0-1

[Event "*** SCC Grand Prix: Titled Tuesday Blitz"]
[Site "Chess.com"]
[Date "2020.06.09"]
[Round "10"]
[White "Sanan_Sjugirov"]
[Black "Kildepiotr"]
[Result "1/2-1/2"]
[WhiteElo "2776"]
[BlackElo "2619"]
[TimeControl "180+1"]
[EndTime "10:54:42 PDT"]
[Termination "Game drawn by repetition"]

1. e4 {[%clk 0:03:00.9]} 1... e6 {[%clk 0:02:59]} 2. d4 {[%clk 0:03:00.5]} 2...
d5 {[%clk 0:02:59.4]} 3. e5 {[%clk 0:03:01.1]} 3... c5 {[%clk 0:02:59.5]} 4. c3
{[%clk 0:03:01.8]} 4... Qb6 {[%clk 0:03:00]} 5. Nf3 {[%clk 0:03:02.1]} 5... Bd7
{[%clk 0:03:00.1]} 6. Be2 {[%clk 0:03:00.5]} 6... Bb5 {[%clk 0:02:57.9]} 7. O-O
{[%clk 0:02:34.4]} 7... Bxe2 {[%clk 0:02:56.8]} 8. Qxe2 {[%clk 0:02:35.3]} 8...
Nc6 {[%clk 0:02:57.2]} 9. Be3 {[%clk 0:02:33.7]} 9... cxd4 {[%clk 0:02:54.6]}
10. cxd4 {[%clk 0:02:33.3]} 10... Nge7 {[%clk 0:02:52.8]} 11. Nc3 {[%clk
0:02:29.4]} 11... Nf5 {[%clk 0:02:52.7]} 12. Rfd1 {[%clk 0:02:28.4]} 12... Be7
{[%clk 0:02:51.9]} 13. g4 {[%clk 0:02:26.7]} 13... Nxe3 {[%clk 0:02:51.2]} 14.
fxe3 {[%clk 0:02:23.4]} 14... O-O {[%clk 0:02:50.8]} 15. Qb5 {[%clk 0:02:21.2]}
15... Qxb5 {[%clk 0:02:47]} 16. Nxb5 {[%clk 0:02:22.1]} 16... a6 {[%clk
0:02:47.4]} 17. Nc3 {[%clk 0:02:22.3]} 17... f6 {[%clk 0:02:46.6]} 18. exf6
{[%clk 0:02:22.3]} 18... Rxf6 {[%clk 0:02:44.9]} 19. Kg2 {[%clk 0:02:23.2]}
19... Raf8 {[%clk 0:02:38.9]} 20. Rf1 {[%clk 0:02:22.7]} 20... Bd6 {[%clk
0:02:36.2]} 21. h3 {[%clk 0:02:21.2]} 21... Nb4 {[%clk 0:02:25.7]} 22. Rac1
{[%clk 0:02:12.5]} 22... Nd3 {[%clk 0:02:20.5]} 23. Rb1 {[%clk 0:02:12.2]} 23...
Rg6 {[%clk 0:02:04.7]} 24. Rfd1 {[%clk 0:01:44.5]} 24... Nb4 {[%clk 0:02:03.6]}
25. a3 {[%clk 0:01:33.5]} 25... Nc6 {[%clk 0:02:03.6]} 26. Rf1 {[%clk
0:01:27.9]} 26... h5 {[%clk 0:01:56.9]} 27. Nh4 {[%clk 0:01:25.3]} 27... Rg5
{[%clk 0:01:56.2]} 28. Rxf8+ {[%clk 0:01:24.1]} 28... Kxf8 {[%clk 0:01:56]} 29.
Rf1+ {[%clk 0:01:23.8]} 29... Ke8 {[%clk 0:01:43.9]} 30. Nf3 {[%clk 0:01:23.6]}
30... Rg6 {[%clk 0:01:43.6]} 31. Nh4 {[%clk 0:01:23.3]} 31... Rg5 {[%clk
0:01:43.5]} 32. Nf3 {[%clk 0:01:15.6]} 32... Rg6 {[%clk 0:01:43.7]} 33. Nh4
{[%clk 0:01:15.8]} 33... Rg5 {[%clk 0:01:43.7]} 1/2-1/2

[Event "*** SCC Grand Prix: Titled Tuesday Blitz"]
[Site "Chess.com"]
[Date "2020.06.09"]
[Round "10"]
[White "Borsuk_Konstantin"]
[Black "witcher8"]
[Result "1-0"]
[WhiteElo "2567"]
[BlackElo "2412"]
[TimeControl "180+1"]
[EndTime "10:54:46 PDT"]
[Termination "Borsuk_Konstantin won on time"]

1. d4 {[%clk 0:03:00.9]} 1... Nf6 {[%clk 0:01:14.2]} 2. c4 {[%clk 0:02:59.2]}
2... g6 {[%clk 0:01:13.9]} 3. Nc3 {[%clk 0:02:59.3]} 3... Bg7 {[%clk 0:01:12.7]}
4. e4 {[%clk 0:02:59]} 4... d6 {[%clk 0:01:13.6]} 5. f3 {[%clk 0:02:58.8]} 5...
O-O {[%clk 0:01:12.7]} 6. Be3 {[%clk 0:02:59.3]} 6... c5 {[%clk 0:01:05]} 7.
dxc5 {[%clk 0:02:59]} 7... dxc5 {[%clk 0:00:58.8]} 8. Qxd8 {[%clk 0:02:59.9]}
8... Rxd8 {[%clk 0:00:59]} 9. Bxc5 {[%clk 0:03:00.5]} 9... Nc6 {[%clk
0:00:56.6]} 10. Nd5 {[%clk 0:03:00.9]} 10... Nd7 {[%clk 0:00:51.2]} 11. Bxe7
{[%clk 0:02:59.9]} 11... Nxe7 {[%clk 0:00:13.7]} 12. Nxe7+ {[%clk 0:03:00.8]}
12... Kf8 {[%clk 0:00:05.8]} 13. Nd5 {[%clk 0:03:01.3]} 13... Nb6 {[%clk
0:00:03.3]} 14. O-O-O {[%clk 0:02:58]} 14... Be6 {[%clk 0:00:02.9]} 15. Kb1
{[%clk 0:02:48.1]} 15... Nxd5 {[%clk 0:00:01.9]} 16. cxd5 {[%clk 0:02:47.4]}
16... Bd7 {[%clk 0:00:02.2]} 17. Ne2 {[%clk 0:02:44.6]} 17... b5 {[%clk
0:00:01.8]} 18. Nd4 {[%clk 0:02:44.2]} 18... a5 {[%clk 0:00:01.5]} 19. Bxb5
{[%clk 0:02:18.7]} 1-0

[Event "*** SCC Grand Prix: Titled Tuesday Blitz"]
[Site "Chess.com"]
[Date "2020.06.09"]
[Round "10"]
[White "Bubachess1608"]
[Black "Sanyura"]
[Result "0-1"]
[WhiteElo "2278"]
[BlackElo "2469"]
[TimeControl "180+1"]
[EndTime "10:54:57 PDT"]
[Termination "Sanyura won by resignation"]

1. e4 {[%clk 0:02:02.5]} 1... c5 {[%clk 0:02:51.8]} 2. d3 {[%clk 0:02:00.3]}
2... Nc6 {[%clk 0:02:50.9]} 3. c3 {[%clk 0:01:58.8]} 3... e6 {[%clk 0:02:51.8]}
4. f4 {[%clk 0:01:57.7]} 4... d5 {[%clk 0:02:52.3]} 5. Qe2 {[%clk 0:01:56.7]}
5... Nge7 {[%clk 0:02:51.5]} 6. g3 {[%clk 0:01:56.4]} 6... g6 {[%clk 0:02:51.5]}
7. Be3 {[%clk 0:01:56.2]} 7... b6 {[%clk 0:02:50.8]} 8. Bf2 {[%clk 0:01:55.5]}
8... Bg7 {[%clk 0:02:51]} 9. Bg2 {[%clk 0:01:55.2]} 9... O-O {[%clk 0:02:50.8]}
10. Nf3 {[%clk 0:01:54.9]} 10... a5 {[%clk 0:02:51.3]} 11. a4 {[%clk 0:01:53.3]}
11... dxe4 {[%clk 0:02:51.1]} 12. dxe4 {[%clk 0:01:52.4]} 12... Ba6 {[%clk
0:02:52]} 13. Qd2 {[%clk 0:01:51.4]} 13... e5 {[%clk 0:02:50.1]} 14. Bf1 {[%clk
0:01:48.5]} 14... exf4 {[%clk 0:02:49]} 15. gxf4 {[%clk 0:01:46.2]} 15... Bxf1
{[%clk 0:02:48.3]} 16. Kxf1 {[%clk 0:01:45]} 16... Qc8 {[%clk 0:02:48.1]} 17.
Kg2 {[%clk 0:01:42]} 17... Qg4+ {[%clk 0:02:47.2]} 18. Bg3 {[%clk 0:01:41.8]}
18... Rad8 {[%clk 0:02:45.6]} 19. Qe2 {[%clk 0:01:40.3]} 19... h5 {[%clk
0:02:43.1]} 20. h3 {[%clk 0:01:40]} 20... Qe6 {[%clk 0:02:37.8]} 21. Nbd2 {[%clk
0:01:40.1]} 21... f5 {[%clk 0:02:31.5]} 22. Ng5 {[%clk 0:01:36.7]} 22... Qf6
{[%clk 0:02:25.5]} 23. e5 {[%clk 0:01:34.4]} 23... Nxe5 {[%clk 0:02:22.9]} 24.
fxe5 {[%clk 0:01:31.4]} 24... Qxg5 {[%clk 0:02:22.4]} 25. Nf3 {[%clk 0:01:31.3]}
25... Qh6 {[%clk 0:02:18.7]} 26. h4 {[%clk 0:01:30.2]} 26... f4 {[%clk 0:02:17]}
27. Bf2 {[%clk 0:01:29.7]} 27... Nf5 {[%clk 0:02:15.4]} 28. Ng5 {[%clk 0:01:29]}
28... f3+ {[%clk 0:02:07.9]} 29. Nxf3 {[%clk 0:01:23.9]} 29... Qf4 {[%clk
0:02:07.6]} 30. Rad1 {[%clk 0:01:19.3]} 30... Qg4+ {[%clk 0:01:58.5]} 31. Kh2
{[%clk 0:01:18.5]} 31... Rxd1 {[%clk 0:01:57.6]} 32. Rxd1 {[%clk 0:01:16.8]}
32... Nxh4 {[%clk 0:01:49.5]} 33. Nxh4 {[%clk 0:01:08.7]} 33... Qxe2 {[%clk
0:01:48.4]} 0-1

[Event "*** SCC Grand Prix: Titled Tuesday Blitz"]
[Site "Chess.com"]
[Date "2020.06.09"]
[Round "10"]
[White "SketchyMoves"]
[Black "TigranMukhutdinov"]
[Result "1-0"]
[WhiteElo "2651"]
[BlackElo "2476"]
[TimeControl "180+1"]
[EndTime "10:55:03 PDT"]
[Termination "SketchyMoves won by resignation"]

1. b3 {[%clk 0:03:00.9]} 1... e5 {[%clk 0:02:59.5]} 2. Bb2 {[%clk 0:03:01.2]}
2... Nc6 {[%clk 0:03:00]} 3. e3 {[%clk 0:03:00.4]} 3... Nf6 {[%clk 0:03:00.4]}
4. Nf3 {[%clk 0:03:00.4]} 4... d6 {[%clk 0:02:58.8]} 5. d4 {[%clk 0:03:00.3]}
5... exd4 {[%clk 0:02:58.7]} 6. Nxd4 {[%clk 0:02:59.4]} 6... Nxd4 {[%clk
0:02:58]} 7. Qxd4 {[%clk 0:02:59.3]} 7... Be7 {[%clk 0:02:58.6]} 8. Nc3 {[%clk
0:02:59.8]} 8... O-O {[%clk 0:02:58.6]} 9. Nd5 {[%clk 0:03:00.2]} 9... c6 {[%clk
0:02:57.1]} 10. Nxe7+ {[%clk 0:03:00.4]} 10... Qxe7 {[%clk 0:02:58]} 11. Bd3
{[%clk 0:02:59.6]} 11... d5 {[%clk 0:02:56.1]} 12. Qh4 {[%clk 0:02:58.4]} 12...
h6 {[%clk 0:02:53.6]} 13. g4 {[%clk 0:02:55.8]} 13... Re8 {[%clk 0:02:44.3]} 14.
g5 {[%clk 0:02:49.6]} 14... Ne4 {[%clk 0:02:40.3]} 15. Bxe4 {[%clk 0:02:26.7]}
15... Qb4+ {[%clk 0:02:32.5]} 16. c3 {[%clk 0:02:19.6]} 16... Qxe4 {[%clk
0:02:30.9]} 17. Qxe4 {[%clk 0:02:18.7]} 17... Rxe4 {[%clk 0:02:31.8]} 18. gxh6
{[%clk 0:02:19]} 18... gxh6 {[%clk 0:02:31.6]} 19. Ke2 {[%clk 0:02:15.8]} 19...
Bf5 {[%clk 0:02:18.6]} 20. f3 {[%clk 0:02:14.1]} 20... Re6 {[%clk 0:02:17.6]}
21. Rhg1+ {[%clk 0:02:12.4]} 21... Bg6 {[%clk 0:02:17.6]} 22. Kf2 {[%clk
0:02:05.4]} 22... Rae8 {[%clk 0:02:17]} 23. Rae1 {[%clk 0:02:03.8]} 23... Kh7
{[%clk 0:02:17]} 24. Rg4 {[%clk 0:02:01.7]} 24... Bh5 {[%clk 0:02:09.8]} 25. Rf4
{[%clk 0:02:01.4]} 25... Bg6 {[%clk 0:02:06.3]} 26. h4 {[%clk 0:01:58.2]} 26...
h5 {[%clk 0:02:05.9]} 27. c4 {[%clk 0:01:53.2]} 27... dxc4 {[%clk 0:02:04.1]}
28. Rxc4 {[%clk 0:01:54.1]} 28... Rd8 {[%clk 0:02:03]} 29. Re2 {[%clk
0:01:49.6]} 29... Red6 {[%clk 0:02:01.4]} 30. e4 {[%clk 0:01:40.4]} 30... Rd2
{[%clk 0:01:59]} 31. Rc5 {[%clk 0:01:37.9]} 31... Rxe2+ {[%clk 0:01:51.9]} 32.
Kxe2 {[%clk 0:01:38.8]} 32... Rd6 {[%clk 0:01:51.9]} 33. Ra5 {[%clk 0:01:31.7]}
33... a6 {[%clk 0:01:48.3]} 34. Re5 {[%clk 0:01:31.8]} 34... Re6 {[%clk
0:01:48.2]} 35. Rxe6 {[%clk 0:01:27.5]} 35... fxe6 {[%clk 0:01:49.1]} 36. Ke3
{[%clk 0:01:28.3]} 36... Kg8 {[%clk 0:01:46.9]} 37. Kd4 {[%clk 0:01:28.6]} 37...
b6 {[%clk 0:01:23]} 38. Ke5 {[%clk 0:01:28.5]} 38... Bf7 {[%clk 0:01:23.6]} 39.
Kd6 {[%clk 0:01:29]} 39... Be8 {[%clk 0:01:23.7]} 40. Kxe6 {[%clk 0:01:25.5]}
1-0

[Event "*** SCC Grand Prix: Titled Tuesday Blitz"]
[Site "Chess.com"]
[Date "2020.06.09"]
[Round "10"]
[White "Haapana"]
[Black "GuuBol"]
[Result "0-1"]
[WhiteElo "2381"]
[BlackElo "2263"]
[TimeControl "180+1"]
[EndTime "10:55:14 PDT"]
[Termination "GuuBol won by resignation"]

1. d4 {[%clk 0:03:00.9]} 1... d5 {[%clk 0:02:58.5]} 2. c4 {[%clk 0:02:59.7]}
2... e6 {[%clk 0:02:58.5]} 3. Nc3 {[%clk 0:02:58.7]} 3... c5 {[%clk 0:02:58.5]}
4. cxd5 {[%clk 0:02:52.9]} 4... exd5 {[%clk 0:02:59.4]} 5. Nf3 {[%clk
0:02:52.4]} 5... Nc6 {[%clk 0:02:59.9]} 6. g3 {[%clk 0:02:51.1]} 6... Nf6 {[%clk
0:02:59.7]} 7. Bg2 {[%clk 0:02:49.3]} 7... Be7 {[%clk 0:02:59.8]} 8. O-O {[%clk
0:02:32.5]} 8... O-O {[%clk 0:02:59.7]} 9. dxc5 {[%clk 0:02:29.1]} 9... Bxc5
{[%clk 0:02:59.5]} 10. Bg5 {[%clk 0:02:25.5]} 10... Be6 {[%clk 0:02:55.3]} 11.
Rc1 {[%clk 0:01:51.2]} 11... Bb6 {[%clk 0:02:53.3]} 12. Na4 {[%clk 0:01:43.2]}
12... h6 {[%clk 0:02:38.1]} 13. Bf4 {[%clk 0:01:41.5]} 13... Re8 {[%clk
0:02:29.2]} 14. b3 {[%clk 0:01:30.9]} 14... Bg4 {[%clk 0:02:24.8]} 15. h3 {[%clk
0:01:06.3]} 15... Bh5 {[%clk 0:02:15.9]} 16. Re1 {[%clk 0:00:38.2]} 16... Ne4
{[%clk 0:02:03.5]} 17. Nxb6 {[%clk 0:00:37.5]} 17... axb6 {[%clk 0:01:50.9]} 18.
Nd4 {[%clk 0:00:30.9]} 18... Qf6 {[%clk 0:01:45]} 19. Nxc6 {[%clk 0:00:19.4]}
19... bxc6 {[%clk 0:01:44.6]} 20. Qc2 {[%clk 0:00:18.9]} 20... g5 {[%clk
0:01:40.5]} 21. Bd2 {[%clk 0:00:17.8]} 21... Qxf2+ {[%clk 0:01:38.9]} 0-1

[Event "*** SCC Grand Prix: Titled Tuesday Blitz"]
[Site "Chess.com"]
[Date "2020.06.09"]
[Round "10"]
[White "ZAbdumalik"]
[Black "dey2580"]
[Result "0-1"]
[WhiteElo "2714"]
[BlackElo "2496"]
[TimeControl "180+1"]
[EndTime "10:55:19 PDT"]
[Termination "dey2580 won by resignation"]

1. e4 {[%clk 0:03:00.9]} 1... d5 {[%clk 0:02:59.7]} 2. exd5 {[%clk 0:03:01]}
2... Qxd5 {[%clk 0:03:00.6]} 3. Nc3 {[%clk 0:03:01.1]} 3... Qd6 {[%clk
0:03:00.9]} 4. d4 {[%clk 0:02:59.8]} 4... Nf6 {[%clk 0:03:00.7]} 5. g3 {[%clk
0:02:57.8]} 5... Bg4 {[%clk 0:02:58.1]} 6. Qd3 {[%clk 0:02:56.6]} 6... Nc6
{[%clk 0:02:47.2]} 7. Nge2 {[%clk 0:02:54.8]} 7... O-O-O {[%clk 0:02:38.9]} 8.
Be3 {[%clk 0:02:26.4]} 8... e5 {[%clk 0:02:34.7]} 9. Bg2 {[%clk 0:01:52.9]} 9...
exd4 {[%clk 0:02:09.6]} 10. Nb5 {[%clk 0:01:51.8]} 10... Qe5 {[%clk 0:02:00.9]}
11. Bxc6 {[%clk 0:01:34.4]} 11... Bb4+ {[%clk 0:01:52.4]} 12. Bd2 {[%clk
0:01:06]} 12... Bxd2+ {[%clk 0:01:50.2]} 13. Kxd2 {[%clk 0:00:33.6]} 13... bxc6
{[%clk 0:01:27.5]} 14. Na3 {[%clk 0:00:25.6]} 14... Ne4+ {[%clk 0:01:20.3]} 15.
Kd1 {[%clk 0:00:18]} 15... Nxf2+ {[%clk 0:01:20]} 0-1

[Event "*** SCC Grand Prix: Titled Tuesday Blitz"]
[Site "Chess.com"]
[Date "2020.06.09"]
[Round "10"]
[White "anon569"]
[Black "harkerchess"]
[Result "1-0"]
[WhiteElo "2294"]
[BlackElo "2026"]
[TimeControl "180+1"]
[EndTime "10:55:25 PDT"]
[Termination "anon569 won by resignation"]

1. e4 {[%clk 0:03:00.9]} 1... e5 {[%clk 0:02:58.6]} 2. Nc3 {[%clk 0:02:59.3]}
2... Nf6 {[%clk 0:02:57.6]} 3. Bc4 {[%clk 0:02:58.1]} 3... Nxe4 {[%clk 0:02:54]}
4. Qh5 {[%clk 0:02:56.8]} 4... Nd6 {[%clk 0:02:52.5]} 5. Bb3 {[%clk 0:02:57.1]}
5... Be7 {[%clk 0:02:50.5]} 6. Nf3 {[%clk 0:02:51.3]} 6... Nc6 {[%clk
0:02:47.3]} 7. Nxe5 {[%clk 0:02:43.9]} 7... Nxe5 {[%clk 0:02:48.2]} 8. Qxe5
{[%clk 0:02:44.3]} 8... O-O {[%clk 0:02:48.5]} 9. O-O {[%clk 0:02:43]} 9... Bf6
{[%clk 0:02:44.6]} 10. Qf4 {[%clk 0:02:36.5]} 10... b6 {[%clk 0:02:42.2]} 11. d4
{[%clk 0:02:31.2]} 11... Bb7 {[%clk 0:02:40.9]} 12. Nd5 {[%clk 0:02:27]} 12...
Be7 {[%clk 0:02:33.5]} 13. Nxe7+ {[%clk 0:02:10.3]} 13... Qxe7 {[%clk
0:02:31.4]} 14. Bd2 {[%clk 0:02:08.7]} 14... Qe4 {[%clk 0:02:28.6]} 15. f3
{[%clk 0:01:49.6]} 15... Qg6 {[%clk 0:02:16.3]} 16. Rae1 {[%clk 0:01:40.5]}
16... Nf5 {[%clk 0:02:13.9]} 17. c3 {[%clk 0:01:34]} 17... d6 {[%clk 0:02:08.2]}
18. Bc2 {[%clk 0:01:32.6]} 18... Bc8 {[%clk 0:02:08]} 19. g4 {[%clk 0:01:32.1]}
19... h5 {[%clk 0:01:51.1]} 20. Bxf5 {[%clk 0:01:31.2]} 20... Bxf5 {[%clk
0:01:51.9]} 21. Qxf5 {[%clk 0:01:31]} 21... Qxf5 {[%clk 0:01:52.5]} 22. gxf5
{[%clk 0:01:30.5]} 22... Rfe8 {[%clk 0:01:53.4]} 23. Rxe8+ {[%clk 0:01:28.7]}
23... Rxe8 {[%clk 0:01:54.3]} 24. Re1 {[%clk 0:01:29.2]} 24... Rxe1+ {[%clk
0:01:54.3]} 25. Bxe1 {[%clk 0:01:28.5]} 25... Kf8 {[%clk 0:01:54.3]} 26. Kf2
{[%clk 0:01:28.6]} 26... Ke7 {[%clk 0:01:55.2]} 27. Ke3 {[%clk 0:01:28.9]} 27...
Kf6 {[%clk 0:01:56.1]} 28. Kf4 {[%clk 0:01:29.1]} 28... g5+ {[%clk 0:01:45.7]}
29. fxg6 {[%clk 0:01:28.3]} 29... fxg6 {[%clk 0:01:46.6]} 30. Bh4+ {[%clk
0:01:28.6]} 30... Kf7 {[%clk 0:01:46.6]} 31. Bd8 {[%clk 0:01:28.4]} 31... c6
{[%clk 0:01:47.1]} 32. Kg5 {[%clk 0:01:26]} 32... c5 {[%clk 0:01:45]} 33. d5
{[%clk 0:01:22.8]} 33... a6 {[%clk 0:01:42]} 34. f4 {[%clk 0:01:22.6]} 34... b5
{[%clk 0:01:41.6]} 35. f5 {[%clk 0:01:22.1]} 35... gxf5 {[%clk 0:01:42.5]} 36.
Kxf5 {[%clk 0:01:22.5]} 36... h4 {[%clk 0:01:43.4]} 37. Bxh4 {[%clk 0:01:21.4]}
37... a5 {[%clk 0:01:40.2]} 38. Bf6 {[%clk 0:01:21.4]} 38... a4 {[%clk
0:01:40.2]} 39. h4 {[%clk 0:01:21.2]} 39... b4 {[%clk 0:01:35.8]} 40. h5 {[%clk
0:01:19.5]} 40... c4 {[%clk 0:01:36.7]} 41. cxb4 {[%clk 0:01:14]} 41... c3
{[%clk 0:01:37.6]} 42. bxc3 {[%clk 0:01:13.3]} 42... a3 {[%clk 0:01:35.7]} 43.
c4 {[%clk 0:01:11.7]} 1-0

[Event "*** SCC Grand Prix: Titled Tuesday Blitz"]
[Site "Chess.com"]
[Date "2020.06.09"]
[Round "10"]
[White "Boudicca64"]
[Black "dianamirza"]
[Result "0-1"]
[WhiteElo "1815"]
[BlackElo "1992"]
[TimeControl "180+1"]
[EndTime "10:55:26 PDT"]
[Termination "dianamirza won by checkmate"]

1. e4 {[%clk 0:03:00.9]} 1... e5 {[%clk 0:02:57.1]} 2. d4 {[%clk 0:02:58.1]}
2... exd4 {[%clk 0:02:57.2]} 3. Qxd4 {[%clk 0:02:56.6]} 3... Nf6 {[%clk
0:02:58.1]} 4. Nc3 {[%clk 0:02:53.5]} 4... d6 {[%clk 0:02:48.9]} 5. Be3 {[%clk
0:02:51.1]} 5... g6 {[%clk 0:02:46.7]} 6. f3 {[%clk 0:02:49.4]} 6... Bg7 {[%clk
0:02:46.7]} 7. Bc4 {[%clk 0:02:47.6]} 7... O-O {[%clk 0:02:46.4]} 8. O-O-O
{[%clk 0:02:45.8]} 8... Nc6 {[%clk 0:02:46.7]} 9. Qd2 {[%clk 0:02:44.2]} 9...
Ne5 {[%clk 0:02:44.2]} 10. Bb3 {[%clk 0:02:42.7]} 10... a5 {[%clk 0:02:41.2]}
11. a3 {[%clk 0:02:38.7]} 11... Bd7 {[%clk 0:02:39.7]} 12. h4 {[%clk 0:02:35.2]}
12... a4 {[%clk 0:02:17]} 13. Ba2 {[%clk 0:02:31.1]} 13... b5 {[%clk 0:02:09.6]}
14. Bh6 {[%clk 0:02:19.7]} 14... b4 {[%clk 0:02:03.6]} 15. axb4 {[%clk 0:02:17]}
15... a3 {[%clk 0:02:01.9]} 16. h5 {[%clk 0:02:07.3]} 16... axb2+ {[%clk
0:01:53]} 17. Kxb2 {[%clk 0:02:05.7]} 17... Rxa2+ {[%clk 0:01:11.4]} 18. Kxa2
{[%clk 0:02:00.9]} 18... Qa8+ {[%clk 0:01:10.9]} 19. Kb3 {[%clk 0:01:55.7]}
19... Be6+ {[%clk 0:01:08.3]} 20. Nd5 {[%clk 0:01:52.5]} 20... Nxd5 {[%clk
0:01:05.4]} 21. exd5 {[%clk 0:01:51.4]} 21... c5 {[%clk 0:00:30.8]} 22. hxg6
{[%clk 0:01:41]} 22... c4+ {[%clk 0:00:28.1]} 23. Kb2 {[%clk 0:01:34.2]} 23...
Nd3+ {[%clk 0:00:26.1]} 24. Kb1 {[%clk 0:01:26.2]} 24... Qa1# {[%clk 0:00:25.6]}
0-1